[Event "NJSK 2024 C"]
[Site "Groningen, Netherlands"]
[Date "2024.05.02"]
[Round "8.10"]
[White "Ambrona Navarro, Himar"]
[Black "Van Haaften, Jelle"]
[Result "1-0"]
[TimeControl "90min/40moves + 30min + 30sec/move"]
[WhiteElo "1963"]
[BlackElo "1655"]

1. d4 {[%clk 01:30:54]} {[%emt 00:00:05]} Nf6 {[%clk 01:30:49]} {[%emt
00:00:12]} 2. c4 {[%clk 01:31:05]} {[%emt 00:00:19]} g6 {[%clk 01:31:15]}
{[%emt 00:00:04]} 3. Nc3 {[%clk 01:31:24]} {[%emt 00:00:09]} Bg7 {[%clk
01:31:41]} {[%emt 00:00:05]} 4. e4 {[%clk 01:31:46]} {[%emt 00:00:08]} d6
{[%clk 01:32:05]} {[%emt 00:00:05]} 5. Nf3 {[%clk 01:32:09]} {[%emt 00:00:09]}
O-O {[%clk 01:32:28]} {[%emt 00:00:07]} 6. h3 {[%clk 01:32:29]} {[%emt
00:00:09]} Nbd7 {[%clk 01:32:48]} {[%emt 00:00:10]} 7. Be3 {[%clk 01:32:27]}
{[%emt 00:00:32]} c5 {[%clk 01:32:58]} {[%emt 00:00:19]} 8. d5 {[%clk
01:32:32]} {[%emt 00:00:26]} Qa5 {[%clk 01:32:54]} {[%emt 00:00:34]} 9. Bd3
{[%clk 01:31:36]} {[%emt 00:01:24]} Ne8 {[%clk 01:29:08]} {[%emt 00:04:18]} 10.
Qd2 {[%clk 01:30:53]} {[%emt 00:01:12]} a6 {[%clk 01:25:14]} {[%emt 00:04:26]}
11. h4 {[%clk 01:29:47]} {[%emt 00:01:35]} Ne5 {[%clk 01:16:13]} {[%emt
00:09:31]} 12. Nxe5 {[%clk 01:28:53]} {[%emt 00:01:25]} dxe5 {[%clk 01:15:28]}
{[%emt 00:01:15]} 13. h5 {[%clk 01:29:11]} {[%emt 00:00:12]} f5 {[%clk
01:13:31]} {[%emt 00:02:27]} 14. f4 {[%clk 01:23:47]} {[%emt 00:05:53]} exf4
{[%clk 01:01:31]} {[%emt 00:12:31]} 15. Bxf4 {[%clk 01:23:44]} {[%emt
00:00:32]} fxe4 {[%clk 00:59:03]} {[%emt 00:02:58]} 16. Bxe4 {[%clk 01:22:46]}
{[%emt 00:01:27]} Bxc3 {[%clk 00:53:42]} {[%emt 00:05:52]} 17. bxc3 {[%clk
01:22:26]} {[%emt 00:00:50]} Rxf4 {[%clk 00:52:42]} {[%emt 00:01:30]} 18. Qxf4
{[%clk 01:22:06]} {[%emt 00:00:49]} Qxc3+ {[%clk 00:53:06]} {[%emt 00:00:07]}
19. Kf2 {[%clk 01:20:26]} {[%emt 00:02:07]} Nf6 {[%clk 00:51:21]} {[%emt
00:02:18]} 20. Bf3 {[%clk 01:18:17]} {[%emt 00:02:36]} Bf5 {[%clk 00:48:07]}
{[%emt 00:03:48]} 21. Rhe1 {[%clk 01:09:51]} {[%emt 00:08:54]} Rf8 {[%clk
00:42:05]} {[%emt 00:06:34]} 22. Kg1 {[%clk 01:06:46]} {[%emt 00:03:33]} b5
{[%clk 00:35:16]} {[%emt 00:07:21]} 23. Rac1 {[%clk 01:05:11]} {[%emt
00:02:01]} Qb4 {[%clk 00:34:40]} {[%emt 00:01:09]} 24. h6 {[%clk 01:03:24]}
{[%emt 00:02:18]} Bd3 {[%clk 00:29:10]} {[%emt 00:06:00]} 25. Rxe7 {[%clk
01:01:43]} {[%emt 00:02:10]} Qb2 {[%clk 00:25:10]} {[%emt 00:04:31]} 26. d6
{[%clk 00:54:37]} {[%emt 00:07:35]} bxc4 {[%clk 00:19:57]} {[%emt 00:05:43]} 27.
d7 {[%clk 00:51:24]} {[%emt 00:03:42]} Nxd7 {[%clk 00:18:44]} {[%emt 00:01:44]}
28. Bd5+ {[%clk 00:51:45]} {[%emt 00:00:08]} Kh8 {[%clk 00:18:52]} {[%emt
00:00:23]} 29. Rxd7 {[%clk 00:51:33]} {[%emt 00:00:40]} Rb8 {[%clk 00:15:14]}
{[%emt 00:04:10]} 30. Rb7 {[%clk 00:51:32]} {[%emt 00:00:32]} Qxc1+ {[%clk
00:14:15]} {[%emt 00:01:29]} 31. Qxc1 {[%clk 00:51:52]} {[%emt 00:00:09]} Rxb7
{[%clk 00:14:41]} {[%emt 00:00:05]} 32. Qc3+ {[%clk 00:52:16]} {[%emt
00:00:04]} 1-0

[Event "NJSK 2024 C"]
[Site "Groningen, Netherlands"]
[Date "2024.05.02"]
[Round "8.11"]
[White "Etienne, Ghilon"]
[Black "Lalkota, Sai Pranav Tejas"]
[Result "0-1"]
[TimeControl "90min/40moves + 30min + 30sec/move"]
[WhiteElo "1793"]
[BlackElo "1782"]

1. e4 {[%clk 01:30:57]} {[%emt 00:00:02]} e6 {[%clk 01:30:55]} {[%emt
00:00:06]} 2. d4 {[%clk 01:31:24]} {[%emt 00:00:03]} d5 {[%clk 01:31:20]}
{[%emt 00:00:05]} 3. Bd3 {[%clk 01:31:51]} {[%emt 00:00:03]} dxe4 {[%clk
01:31:39]} {[%emt 00:00:11]} 4. Bxe4 {[%clk 01:32:17]} {[%emt 00:00:05]} Nf6
{[%clk 01:32:02]} {[%emt 00:00:07]} 5. Bf3 {[%clk 01:32:43]} {[%emt 00:00:03]}
Bd6 {[%clk 01:32:09]} {[%emt 00:00:23]} 6. Ne2 {[%clk 01:33:09]} {[%emt
00:00:05]} Nc6 {[%clk 01:32:25]} {[%emt 00:00:14]} 7. O-O {[%clk 01:33:33]}
{[%emt 00:00:06]} Bd7 {[%clk 01:32:51]} {[%emt 00:00:04]} 8. Re1 {[%clk
01:33:47]} {[%emt 00:00:16]} O-O {[%clk 01:32:54]} {[%emt 00:00:27]} 9. Nbc3
{[%clk 01:34:01]} {[%emt 00:00:15]} h6 {[%clk 01:33:17]} {[%emt 00:00:07]} 10.
a3 {[%clk 01:32:40]} {[%emt 00:01:51]} e5 {[%clk 01:33:23]} {[%emt 00:00:24]}
11. dxe5 {[%clk 01:29:25]} Nxe5 {[%clk 01:31:30]} {[%emt 00:06:08]} 12. Bxb7
{[%clk 01:29:10]} Rb8 {[%emt 00:00:56]} 13. Bd5 Nxd5 14. Nxd5 {[%clk 01:29:26]}
Qh4 {[%emt 00:04:09]} 15. Qd4 Nf3+ 16. Kf1 Nxh2+ 17. Kg1 Nf3+ 18. Kf1 Qh1+ 19.
Ng1 Qxg1+ 20. Ke2 Nxd4+ {[%clk 01:29:48]} 0-1

[Event "NJSK 2024 C"]
[Site "Groningen, Netherlands"]
[Date "2024.05.02"]
[Round "8.12"]
[White "De Wit, Evan"]
[Black "Frederiks, Jesse"]
[Result "1/2-1/2"]
[TimeControl "90min/40moves + 30min + 30sec/move"]
[WhiteElo "1769"]
[BlackElo "1718"]

1. d4 {[%clk 01:30:59]} d5 {[%clk 01:30:45]} {[%emt 00:00:16]} 2. c4 {[%clk
01:31:23]} {[%emt 00:00:05]} c6 {[%clk 01:31:11]} {[%emt 00:00:04]} 3. cxd5
{[%clk 01:31:46]} {[%emt 00:00:08]} cxd5 {[%clk 01:31:32]} {[%emt 00:00:09]} 4.
Nc3 {[%clk 01:32:10]} {[%emt 00:00:05]} Nf6 {[%clk 01:31:43]} {[%emt 00:00:19]}
5. Bf4 {[%clk 01:32:34]} {[%emt 00:00:05]} Nc6 {[%clk 01:31:23]} {[%emt
00:00:51]} 6. e3 {[%clk 01:32:57]} {[%emt 00:00:08]} a6 {[%clk 01:31:15]}
{[%emt 00:00:37]} 7. Bd3 {[%clk 01:33:21]} {[%emt 00:00:06]} e6 {[%clk
01:28:26]} {[%emt 00:03:19]} 8. Nge2 {[%emt 00:01:36]} Nh5 {[%clk 01:27:29]} 9.
O-O {[%clk 01:33:49]} {[%emt 00:00:23]} Nxf4 {[%clk 01:27:40]} {[%emt
00:00:18]} 10. Nxf4 {[%clk 01:34:11]} {[%emt 00:00:08]} Bd6 {[%clk 01:26:15]}
{[%emt 00:01:56]} 11. Nfe2 {[%clk 01:32:13]} {[%emt 00:02:27]} Qc7 {[%clk
01:22:44]} {[%emt 00:04:02]} 12. f4 {[%clk 01:32:01]} {[%emt 00:00:42]} Bd7
{[%clk 01:22:33]} {[%emt 00:00:41]} 13. Rc1 {[%clk 01:32:11]} {[%emt 00:00:20]}
f5 {[%clk 01:19:21]} {[%emt 00:03:43]} 14. a3 {[%clk 01:32:11]} {[%emt
00:00:30]} b5 {[%clk 01:17:25]} {[%emt 00:02:26]} 15. b4 {[%clk 01:30:45]}
{[%emt 00:01:56]} Qd8 {[%clk 01:13:34]} {[%emt 00:04:20]} 16. Qe1 {[%clk
01:27:57]} {[%emt 00:03:17]} O-O {[%clk 01:12:00]} {[%emt 00:02:05]} 17. Kh1
{[%clk 01:27:09]} {[%emt 00:01:17]} Ne7 {[%clk 01:11:14]} {[%emt 00:01:17]} 18.
Nb1 {[%clk 01:27:05]} {[%emt 00:00:35]} Nc8 {[%clk 01:11:17]} {[%emt 00:00:26]}
19. g4 {[%clk 01:23:45]} {[%emt 00:03:50]} Nb6 {[%clk 01:07:22]} {[%emt
00:04:25]} 20. gxf5 {[%clk 01:23:10]} {[%emt 00:01:04]} exf5 {[%clk 01:07:42]}
{[%emt 00:00:11]} 21. Nd2 {[%clk 01:22:39]} {[%emt 00:01:01]} Nc4 {[%clk
01:08:00]} {[%emt 00:00:12]} 22. Bxc4 {[%clk 01:20:47]} {[%emt 00:02:23]} dxc4
{[%clk 01:07:15]} {[%emt 00:01:15]} 23. Nf3 {[%clk 01:19:21]} {[%emt 00:01:55]}
Qe7 {[%clk 01:00:34]} {[%emt 00:07:13]} 24. Ne5 {[%clk 01:18:39]} {[%emt
00:01:11]} a5 {[%clk 00:57:13]} {[%emt 00:03:52]} 25. Nc3 {[%clk 01:16:19]}
{[%emt 00:02:50]} Bxe5 {[%clk 00:56:45]} {[%emt 00:00:58]} 26. fxe5 {[%clk
01:16:31]} {[%emt 00:00:17]} axb4 {[%clk 00:56:46]} {[%emt 00:00:29]} 27. axb4
{[%clk 01:16:17]} {[%emt 00:00:44]} Ra3 {[%clk 00:55:12]} {[%emt 00:02:03]} 28.
e4 {[%clk 01:14:16]} {[%emt 00:02:32]} fxe4 {[%clk 00:54:08]} {[%emt 00:01:34]}
29. Nxe4 {[%clk 01:12:22]} {[%emt 00:02:25]} Rxf1+ {[%clk 00:53:53]} 30. Qxf1
{[%clk 01:12:23]} {[%emt 00:01:12]} Bc6 {[%clk 00:54:07]} {[%emt 00:00:17]} 31.
Qg2 {[%clk 01:11:08]} {[%emt 00:01:44]} Re3 {[%clk 00:53:30]} {[%emt 00:01:08]}
32. d5 {[%clk 01:10:26]} {[%emt 00:01:12]} Qxe5 {[%clk 00:53:20]} {[%emt
00:00:40]} 33. dxc6 {[%clk 01:10:33]} {[%emt 00:00:23]} Rxe4 {[%clk 00:51:18]}
{[%emt 00:02:32]} 34. c7 {[%clk 01:10:54]} {[%emt 00:00:09]} Re1+ {[%clk
00:51:40]} {[%emt 00:00:09]} 35. Rxe1 {[%clk 01:11:14]} {[%emt 00:00:09]} Qxe1+
{[%clk 00:52:04]} {[%emt 00:00:06]} 36. Qg1 {[%clk 01:11:33]} {[%emt 00:00:10]}
Qe4+ {[%clk 00:52:29]} {[%emt 00:00:06]} 37. Qg2 {[%clk 01:11:54]} {[%emt
00:00:09]} 1/2-1/2

[Event "NJSK 2024 C"]
[Site "Groningen, Netherlands"]
[Date "2024.05.02"]
[Round "8.13"]
[White "Stylianou, Alexandros"]
[Black "Kors, Siebe"]
[Result "1-0"]
[TimeControl "90min/40moves + 30min + 30sec/move"]
[WhiteElo "1642"]
[BlackElo "1668"]

1. d4 {[%clk 01:30:59]} d5 {[%clk 01:30:55]} {[%emt 00:00:06]} 2. c4 {[%clk
01:31:24]} {[%emt 00:00:05]} e6 {[%clk 01:31:15]} {[%emt 00:00:09]} 3. Nc3
{[%clk 01:31:46]} {[%emt 00:00:08]} Nf6 {[%clk 01:31:37]} {[%emt 00:00:08]} 4.
Nf3 {[%clk 01:32:08]} {[%emt 00:00:08]} b6 {[%clk 01:30:20]} {[%emt 00:01:47]}
5. Bf4 {[%clk 01:32:24]} {[%emt 00:00:14]} Bd6 {[%clk 01:30:29]} {[%emt
00:00:21]} 6. Bxd6 {[%clk 01:31:47]} {[%emt 00:01:07]} Qxd6 {[%clk 01:30:39]}
{[%emt 00:00:20]} 7. e3 {[%clk 01:31:55]} {[%emt 00:00:22]} a6 {[%clk
01:29:58]} {[%emt 00:01:11]} 8. Bd3 {[%clk 01:32:13]} {[%emt 00:00:12]} Bb7
{[%clk 01:29:51]} {[%emt 00:00:37]} 9. O-O {[%clk 01:32:07]} {[%emt 00:00:37]}
Nbd7 {[%clk 01:24:48]} {[%emt 00:05:32]} 10. a3 {[%clk 01:32:18]} {[%emt
00:00:19]} c5 {[%clk 01:23:19]} {[%emt 00:01:58]} 11. Re1 {[%clk 01:30:11]}
{[%emt 00:02:38]} e5 {[%clk 01:22:17]} {[%emt 00:01:32]} 12. dxe5 {[%clk
01:26:18]} {[%emt 00:04:23]} Nxe5 {[%clk 01:21:33]} {[%emt 00:01:13]} 13. Nxe5
{[%clk 01:26:04]} {[%emt 00:00:44]} Qxe5 {[%clk 01:21:53]} {[%emt 00:00:11]} 14.
cxd5 {[%clk 01:23:05]} {[%emt 00:03:30]} Nxd5 {[%clk 01:21:42]} {[%emt
00:00:40]} 15. Nxd5 {[%clk 01:23:05]} {[%emt 00:00:30]} Bxd5 {[%clk 01:21:39]}
{[%emt 00:00:33]} 16. Qc2 {[%clk 01:22:44]} {[%emt 00:00:50]} Qf6 {[%clk
01:20:08]} {[%emt 00:01:59]} 17. e4 {[%clk 01:22:35]} {[%emt 00:00:41]} Be6
{[%clk 01:19:36]} {[%emt 00:01:04]} 18. e5 {[%clk 01:21:31]} {[%emt 00:01:33]}
Qe7 {[%clk 01:18:56]} {[%emt 00:01:08]} 19. Be4 {[%clk 01:16:22]} {[%emt
00:05:41]} Rc8 {[%clk 01:18:03]} {[%emt 00:01:23]} 20. Qa4+ {[%clk 01:16:26]}
{[%emt 00:00:25]} Bd7 {[%clk 01:17:28]} {[%emt 00:01:07]} 21. Qxa6 {[%clk
01:16:31]} {[%emt 00:00:24]} b5 {[%clk 01:17:29]} {[%emt 00:00:28]} 22. Qb7
{[%clk 01:12:35]} {[%emt 00:04:27]} O-O {[%emt 00:00:54]} 23. Bf5 {[%emt
00:00:59]} Rfd8 {[%clk 01:14:40]} {[%emt 00:01:26]} 24. Rad1 {[%clk 01:12:30]}
{[%emt 00:00:35]} Rb8 {[%clk 01:13:45]} {[%emt 00:01:24]} 25. Qe4 {[%clk
01:08:02]} {[%emt 00:04:58]} g6 {[%clk 01:13:05]} {[%emt 00:01:10]} 26. Bxd7
{[%clk 01:07:26]} {[%emt 00:01:07]} Rxd7 {[%clk 01:13:14]} {[%emt 00:00:21]} 27.
Rxd7 {[%clk 01:00:02]} {[%emt 00:07:55]} Qxd7 {[%clk 01:13:29]} {[%emt
00:00:14]} 28. Qf4 {[%clk 00:59:13]} {[%emt 00:01:20]} Rd8 {[%clk 01:12:58]}
{[%emt 00:01:00]} 29. h3 {[%clk 00:59:06]} {[%emt 00:00:37]} Qd2 {[%clk
01:12:52]} {[%emt 00:00:35]} 30. Qe3 {[%clk 00:57:42]} {[%emt 00:01:55]} Qxe3
{[%clk 01:12:27]} {[%emt 00:00:56]} 31. Rxe3 {[%clk 00:57:58]} {[%emt
00:00:13]} Rd2 {[%clk 01:12:46]} {[%emt 00:00:11]} 32. Rb3 {[%clk 00:58:03]}
{[%emt 00:00:24]} Rd5 {[%clk 01:11:59]} {[%emt 00:01:18]} 33. Rxb5 {[%clk
00:57:21]} {[%emt 00:01:12]} Rxe5 {[%clk 01:12:25]} {[%emt 00:00:04]} 34. a4
{[%clk 00:57:04]} {[%emt 00:00:47]} Re4 {[%clk 01:11:48]} {[%emt 00:01:07]} 35.
a5 {[%clk 00:56:59]} {[%emt 00:00:35]} Kf8 {[%clk 01:10:59]} {[%emt 00:01:18]}
36. Rxc5 {[%clk 00:56:32]} {[%emt 00:00:57]} Ra4 {[%clk 01:11:01]} {[%emt
00:00:29]} 37. Kf1 {[%clk 00:56:14]} {[%emt 00:00:48]} Ke7 {[%clk 01:11:28]}
{[%emt 00:00:03]} 38. Rb5 {[%clk 00:55:54]} {[%emt 00:00:50]} Kd6 {[%clk
01:11:44]} {[%emt 00:00:13]} 39. b4 {[%clk 00:52:29]} {[%emt 00:03:56]} Kc6
{[%clk 01:11:39]} {[%emt 00:00:35]} 40. Rb6+ {[%clk 00:52:38]} {[%emt
00:00:20]} Kc7 {[%clk 01:12:06]} {[%emt 00:00:04]} 41. Ke2 {[%clk 00:52:04]}
{[%emt 00:01:04]} Ra2+ {[%clk 01:11:58]} {[%emt 00:00:37]} 42. Kf3 {[%clk
00:50:56]} {[%emt 00:01:38]} f5 {[%clk 01:12:12]} {[%emt 00:00:17]} 43. Kg3
{[%clk 00:51:12]} {[%emt 00:00:14]} g5 {[%clk 01:12:11]} {[%emt 00:00:31]} 44.
Kf3 {[%clk 00:50:22]} {[%emt 00:01:20]} Ra3+ {[%clk 01:12:14]} {[%emt
00:00:28]} 45. Ke2 {[%clk 00:50:40]} {[%emt 00:00:11]} Ra2+ {[%clk 01:12:31]}
{[%emt 00:00:12]} 46. Ke3 {[%clk 00:50:41]} {[%emt 00:00:30]} Ra3+ {[%clk
01:12:40]} {[%emt 00:00:22]} 47. Kd4 {[%clk 00:50:42]} {[%emt 00:00:28]} Ra2
{[%clk 01:12:34]} {[%emt 00:00:35]} 48. Kc5 {[%clk 00:48:41]} {[%emt 00:02:32]}
Rc2+ {[%clk 01:11:22]} {[%emt 00:01:42]} 49. Kb5 {[%clk 00:49:02]} {[%emt
00:00:09]} Re2 {[%clk 01:11:40]} {[%emt 00:00:12]} 50. Ka6 {[%clk 00:49:12]}
{[%emt 00:00:20]} Rxf2 {[%clk 01:11:44]} {[%emt 00:00:26]} 51. g4 {[%clk
00:49:00]} {[%emt 00:00:43]} f4 {[%clk 01:11:03]} {[%emt 00:01:10]} 52. Rb7+
{[%clk 00:49:20]} {[%emt 00:00:10]} Kc8 {[%clk 01:11:00]} {[%emt 00:00:31]} 53.
Kb6 {[%clk 00:49:37]} {[%emt 00:00:16]} Re2 {[%clk 01:10:45]} {[%emt 00:00:44]}
54. Rc7+ {[%clk 00:49:34]} {[%emt 00:00:32]} Kd8 {[%clk 01:10:49]} {[%emt
00:00:27]} 55. a6 {[%clk 00:49:48]} {[%emt 00:00:17]} Rb2 {[%clk 01:10:37]}
{[%emt 00:00:41]} 56. b5 {[%clk 00:50:10]} {[%emt 00:00:09]} f3 {[%clk
01:08:36]} {[%emt 00:02:30]} 57. a7 {[%clk 00:50:09]} {[%emt 00:00:32]} Ra2
{[%clk 01:08:51]} {[%emt 00:00:14]} 58. Kb7 {[%clk 00:50:25]} {[%emt 00:00:14]}
f2 {[%clk 01:08:56]} {[%emt 00:00:24]} 59. Rf7 {[%clk 00:50:46]} {[%emt
00:00:10]} Ke8 {[%clk 01:08:40]} {[%emt 00:00:46]} 60. Rxf2 {[%clk 00:50:51]}
{[%emt 00:00:25]} 1-0

[Event "NJSK 2024 C"]
[Site "Groningen, Netherlands"]
[Date "2024.05.03"]
[Round "9.1"]
[White "Grooten, Tommy"]
[Black "Groenewoud, Joel"]
[Result "1-0"]
[TimeControl "90min/40moves + 30min + 30sec/move"]
[WhiteElo "2018"]
[BlackElo "2030"]

1. d4 {[%clk 01:30:57]} {[%emt 00:00:03]} Nf6 {[%clk 01:30:55]} {[%emt
00:00:05]} 2. c4 {[%clk 01:31:23]} {[%emt 00:00:04]} g6 {[%clk 01:31:21]}
{[%emt 00:00:03]} 3. Nc3 {[%clk 01:31:50]} {[%emt 00:00:04]} Bg7 {[%clk
01:31:49]} {[%emt 00:00:02]} 4. e4 {[%clk 01:32:16]} {[%emt 00:00:05]} d6
{[%clk 01:32:16]} {[%emt 00:00:03]} 5. Nf3 {[%clk 01:32:41]} {[%emt 00:00:05]}
O-O {[%clk 01:32:40]} {[%emt 00:00:05]} 6. Be2 {[%clk 01:33:08]} {[%emt
00:00:03]} e5 {[%clk 01:33:05]} {[%emt 00:00:05]} 7. d5 {[%clk 01:33:34]}
{[%emt 00:00:04]} a5 {[%clk 01:32:26]} {[%emt 00:01:09]} 8. Be3 {[%clk
01:33:52]} {[%emt 00:00:12]} Na6 {[%clk 01:28:56]} {[%emt 00:04:00]} 9. a3
{[%clk 01:31:17]} {[%emt 00:03:06]} Bd7 {[%clk 01:25:32]} {[%emt 00:03:53]} 10.
Rb1 {[%clk 01:28:07]} {[%emt 00:03:40]} a4 {[%clk 01:22:48]} {[%emt 00:03:14]}
11. Nd2 {[%clk 01:27:11]} {[%emt 00:01:25]} Qe8 {[%clk 01:07:43]} {[%emt
00:15:35]} 12. g4 {[%clk 01:22:17]} {[%emt 00:05:23]} Nxg4 {[%clk 00:59:45]}
{[%emt 00:08:28]} 13. Bxg4 {[%clk 01:21:24]} {[%emt 00:01:23]} Bxg4 {[%clk
01:00:05]} {[%emt 00:00:10]} 14. Qxg4 {[%clk 01:21:45]} {[%emt 00:00:10]} f5
{[%clk 01:00:29]} {[%emt 00:00:06]} 15. exf5 {[%clk 01:18:54]} {[%emt
00:03:21]} gxf5 {[%clk 01:00:49]} {[%emt 00:00:10]} 16. Qg5 {[%clk 01:09:37]}
{[%emt 00:09:46]} h6 {[%clk 00:56:52]} {[%emt 00:04:27]} 17. Qh4 {[%clk
01:08:16]} {[%emt 00:01:52]} f4 {[%clk 00:55:50]} {[%emt 00:01:32]} 18. Rg1
{[%clk 01:03:20]} {[%emt 00:05:26]} fxe3 {[%clk 00:53:42]} {[%emt 00:02:37]} 19.
fxe3 {[%clk 01:03:44]} {[%emt 00:00:06]} Kh8 {[%clk 00:48:42]} {[%emt
00:05:30]} 20. Ke2 {[%clk 01:00:51]} {[%emt 00:03:24]} Rf5 {[%clk 00:44:27]}
{[%emt 00:04:44]} 21. Nde4 {[%clk 00:56:50]} {[%emt 00:04:31]} Qh5+ {[%clk
00:37:29]} {[%emt 00:07:28]} 22. Qxh5 {[%clk 00:57:15]} {[%emt 00:00:06]} Rxh5
{[%clk 00:37:48]} {[%emt 00:00:10]} 23. Rg2 {[%clk 00:57:37]} {[%emt 00:00:09]}
Rf8 {[%clk 00:32:28]} {[%emt 00:05:50]} 24. Rf1 {[%clk 00:55:41]} {[%emt
00:02:25]} Rxf1 {[%clk 00:32:31]} {[%emt 00:00:28]} 25. Kxf1 {[%clk 00:56:08]}
{[%emt 00:00:03]} Bf8 {[%clk 00:23:35]} {[%emt 00:09:26]} 26. Ke2 {[%clk
00:54:14]} {[%emt 00:02:24]} Be7 {[%clk 00:21:47]} {[%emt 00:02:17]} 27. Nxa4
{[%clk 00:54:08]} {[%emt 00:00:37]} Kh7 {[%clk 00:16:23]} {[%emt 00:05:53]} 28.
Nac3 {[%clk 00:52:36]} {[%emt 00:02:03]} Rf5 {[%clk 00:10:36]} {[%emt
00:06:17]} 29. Rf2 {[%clk 00:50:20]} {[%emt 00:02:46]} Kg6 {[%clk 00:10:36]}
{[%emt 00:00:29]} 30. Rxf5 {[%clk 00:49:34]} {[%emt 00:01:17]} Kxf5 {[%clk
00:11:00]} {[%emt 00:00:05]} 31. Kf3 {[%clk 00:49:59]} {[%emt 00:00:05]} h5
{[%clk 00:10:39]} {[%emt 00:00:51]} 32. b4 {[%clk 00:49:20]} {[%emt 00:01:09]}
b6 {[%clk 00:08:49]} {[%emt 00:02:20]} 33. Ne2 {[%clk 00:46:44]} {[%emt
00:03:07]} Bf8 {[%clk 00:06:44]} {[%emt 00:02:35]} 34. N2g3+ {[%clk 00:46:15]}
{[%emt 00:00:58]} Kg6 {[%clk 00:07:00]} {[%emt 00:00:14]} 35. Nf2 {[%clk
00:46:14]} {[%emt 00:00:32]} Be7 {[%clk 00:06:23]} {[%emt 00:01:06]} 36. Nd1
{[%clk 00:45:33]} {[%emt 00:01:11]} Kg5 {[%clk 00:06:00]} {[%emt 00:00:53]} 37.
Nc3 {[%clk 00:45:26]} {[%emt 00:00:37]} Bd8 {[%clk 00:05:41]} {[%emt 00:00:49]}
38. Nb5 {[%clk 00:42:51]} {[%emt 00:03:05]} Kh4 {[%clk 00:03:25]} {[%emt
00:02:46]} 39. Kg2 {[%clk 00:42:09]} {[%emt 00:01:12]} Kg4 {[%clk 00:03:05]}
{[%emt 00:00:50]} 40. Na7 {[%clk 00:41:27]} {[%emt 00:01:13]} h4 {[%clk
00:01:22]} {[%emt 00:02:13]} 41. h3+ {[%clk 00:41:48]} {[%emt 00:00:09]} Kg5
{[%clk 00:01:43]} {[%emt 00:00:08]} 42. Ne4+ {[%clk 00:42:16]} {[%emt
00:00:02]} Kf5 {[%clk 00:02:06]} {[%emt 00:00:09]} 43. Kf3 {[%clk 00:42:43]}
{[%emt 00:00:02]} Be7 {[%clk 00:01:42]} {[%emt 00:00:52]} 44. Nc6 {[%clk
00:43:05]} {[%emt 00:00:10]} Bf8 {[%clk 00:01:49]} {[%emt 00:00:22]} 45. c5
{[%clk 00:41:02]} {[%emt 00:02:33]} dxc5 {[%clk 00:00:32]} {[%emt 00:01:48]} 46.
b5 {[%clk 00:41:26]} {[%emt 00:00:06]} Nb4 {[%clk 00:00:50]} {[%emt 00:00:13]}
47. axb4 {[%clk 00:41:52]} {[%emt 00:00:03]} cxb4 {[%clk 00:01:10]} {[%emt
00:00:10]} 48. d6 {[%clk 00:41:30]} {[%emt 00:00:52]} 1-0